Workbook

Sheet Risk Register
A1: HIDE ROW | L1: HIDE COL | N1: HIDE COL | P1: HIDE COL | Q1: HIDE COL | R1: HIDE COL | S1: HIDE COL | T1: HIDE COL | U1: HIDE COL | V1: HIDE COL | W1: HIDE COL | X1: HIDE COL | Z1: =Z104 -> 104 | AB1: Recommended contingency at Mean
A2: HIDE ROW | D2: Open | F2: 1 | H2: Open | J2: Nil | K2: 0 | L2: Nil | O2: Nil | AB2: GRIP | AC2: 1.01 RCS Signalling | AD2: 1.01 RCS Level Crossings | AE2: 1.02 Train Power systems | AF2: 1.03 Electic Power & Plant | AG2: 1.04 Permanent Way | AH2: 1.05 Operational Telecoms | AI2: 1.06 Buildings & Property | AJ2: 1.07 Civils | AK2: 1.08 Enabling Works
A3: HIDE ROW | D3: Closed - Treated | F3: 2 | H3: Closed | J3: Very Low | K3: 1 | L3: Very Low | O3: Routine | AB3: 1 | AC3: 0.4 | AD3: 0.4 | AE3: 0.33 | AF3: 0.33 | AG3: 0.35 | AH3: 0.35 | AI3: 0.4 | AJ3: 0.35 | AK3: 0.4
A4: HIDE ROW | D4: Closed - Impacted | F4: 3 | J4: Low | K4: 2 | L4: Low | O4: Minor | AB4: 2 | AC4: 0.3 | AD4: 0.25 | AE4: 0.22 | AF4: 0.22 | AG4: 0.25 | AH4: 0.25 | AI4: 0.3 | AJ4: 0.25 | AK4: 0.3
A5: HIDE ROW | D5: Controlled | F5: 4 | H5: 0 | J5: Medium | K5: 3 | L5: Medium | O5: Significant | AB5: 3 | AC5: 0.2 | AD5: 0.2 | AE5: 0.12 | AF5: 0.12 | AG5: 0.15 | AH5: 0.15 | AI5: 0.2 | AJ5: 0.15 | AK5: 0.2
A6: HIDE ROW | F6: 5 | H6: 0.03 | J6: High | K6: 4 | L6: High | O6: Major | AB6: 4 | AC6: 0.1 | AD6: 0.15 | AE6: 0.08 | AF6: 0.08 | AG6: 0.1 | AH6: 0.08 | AI6: 0.1 | AJ6: 0.1 | AK6: 0.15
A7: HIDE ROW | F7: 6 | H7: 0.04 | J7: Very High | K7: 5 | L7: Very High | O7: Critical | AB7: 5 | AC7: 0.08 | AD7: 0.1 | AE7: 0.05 | AF7: 0.05 | AG7: 0.07 | AH7: 0.05 | AI7: 0.075 | AJ7: 0.075 | AK7: 0.1
A8: HIDE ROW | H8: 0.05 | AB8: 6 | AC8: 0.05 | AD8: 0.05 | AE8: 0.05 | AF8: 0.05 | AG8: 0.05 | AH8: 0.05 | AI8: 0.05 | AJ8: 0.05 | AK8: 0.05
A9: HIDE ROW
A10: Project Manager's risk register template | O10: Version: 3.0
A12: OP Code | C12: R-WLR | J12: Qualitative risk scoring scale | S12: SMALL | T12: MEDIUM | U12: SYRT | V12: SMALL MIN | W12: SMALL MAX | X12: MED MIN | Y12: MED MAX | Z12: SYRT MIN | AA12: SYRT MAX
A13: Project Title | C13: Windsor Link Railway | J13: Rating | K13: Probability | M13: Cost impact | O13: Time impact | Q13: Warning message | AC13: Contingency model selection by Asset Type and GRIP Stage
A14: GRIP Stage of Project | C14: 2 | F14: Asset type | G14: 1.04 Permanent Way | J14: Very High | K14: > 50% | M14: =IF($G$15="SEE YOUR RISK TEAM",U14,IF($G$15="MEDIUM",T14,S14)) -> > £5m | O14: > 6 months | Q14: =ISBLANK(C14) -> FALSE | R14: =IF(Q14=FALSE,1,) -> 1 | S14: >£50k | T14: >£500k | U14: > £5m | V14: 50000 | W14: 75000 | X14: 500000 | Y14: 750000 | Z14: 5000000 | AA14: 7500000 | AC14: =IF($G$14=AC2,VLOOKUP($C$14,$AB3:$AK8,2),0) -> 0 | AD14: =IF($G$14=AD2,VLOOKUP($C$14,$AB3:$AK8,3),0) -> 0 | AE14: =IF($G$14=AE2,VLOOKUP($C$14,$AB3:$AK8,4),0) -> 0 | AF14: =IF($G$14=AF2,VLOOKUP($C$14,$AB3:$AK8,5),0) -> 0 | AG14: =IF($G$14=AG2,VLOOKUP($C$14,$AB3:$AK8,6),0) -> 0.25 | AH14: =IF($G$14=AH2,VLOOKUP($C$14,$AB3:$AK8,7),0) -> 0 | AI14: =IF($G$14=AI2,VLOOKUP($C$14,$AB3:$AK8,8),0) -> 0 | AJ14: =IF($G$14=AJ2,VLOOKUP($C$14,$AB3:$AK8,9),0) -> 0 | AK14: =IF($G$14=AK2,VLOOKUP($C$14,$AB3:$AK8,10),0) -> 0 | AL14: =SUM(AC14:AK14) -> 0.25
A15: Estimate "to go" value in digits e.g. £800,000 and not £0.8m | C15: 375000000 | F15: Project size | G15: =IF(C15=0,"No input required - Project size is set by Estimate to go value",IF(C15<1000001,"SMALL",IF(C15>10000000,"SEE YOUR RISK TEAM","MEDIUM"))) -> SEE YOUR RISK TEAM | J15: High | K15: 25% to 50% | M15: =IF($G$15="SEE YOUR RISK TEAM",U15,IF($G$15="MEDIUM",T15,S15)) -> £1m - £5m | O15: 3 to 6 months | Q15: =ISBLANK(C15) -> FALSE | R15: =IF(Q15=FALSE,1,) -> 1 | S15: £10k - £50k | T15: £100k - £500k | U15: £1m - £5m | V15: 10000 | W15: 50000 | X15: 100000 | Y15: 500000 | Z15: 1000000 | AA15: 5000000
A16: Project Manager | C16: Jon McPhee | J16: Medium | K16: 10% to 25% | M16: =IF($G$15="SEE YOUR RISK TEAM",U16,IF($G$15="MEDIUM",T16,S16)) -> £250k - £1m | O16: 1 to 3 months | Q16: =ISBLANK(G14) -> FALSE | R16: =IF(Q16=FALSE,1,) -> 1 | S16: £2.5k - £10k | T16: £25k - £100k | U16: £250k - £1m | V16: 2500 | W16: 10000 | X16: 25000 | Y16: 100000 | Z16: 250000 | AA16: 1000000
A17: Generic Risks as a % of Estimate "to go"value (see Generic risk prompt sheet) | C17: 23 | D17: Specific Risks (from below) | F17: =O104 -> 22353750 | G17: Total Risk @ mean | H17: =F17+C17 -> 22353773 | J17: Low | K17: 5% to 10% | M17: =IF($G$15="SEE YOUR RISK TEAM",U17,IF($G$15="MEDIUM",T17,S17)) -> £50k - £250k | O17: 1 week to 1 month | R17: =SUM(R14:R16) -> 3 | S17: £0.5k - £2.5k | T17: £5k - £25k | U17: £50k - £250k | V17: 500 | W17: 2500 | X17: 5000 | Y17: 25000 | Z17: 50000 | AA17: 250000
A18: Status Date of Register | C18: 2017-03-29 | J18: Very Low | K18: < 5% | M18: =IF($G$15="SEE YOUR RISK TEAM",U18,IF($G$15="MEDIUM",T18,S18)) -> < £50k | O18: < 1 week | S18: <£0.5k | T18: <£5k | U18: < £50k | V18: 0 | W18: 500 | X18: 0 | Y18: 5000 | AA18: 50000
A19: The project will connect the two separate Windsor railway lines together and rationalise two separate railway stations in to one new station. For the purposes of this GRIP 2 (feasibility) study, it is assumed that a sub-surface railway through Windsor is the best and only solution for this. Refer to Client Requirements Document for a full description.
I20: =IF(R17<3,,IF(R17=3,IF(W47/C15<AL14,0,"WARNING - your Risk Exposure is greater than the recommended contingency % for your Asset Type and GRIP Stage - consult the R&V Team for guidance"))) -> 0
A23: Identify your project objectives here | E23: =IF(Q25=TRUE,"Make sure you have completed the project objectives before you add risks to the register.","") ->  | Q23: Objectives message | S23: Small | T23: Probability | U23: Minimum | W23: Maximum
S24: Very High | T24: 0.625 | U24: =IF($G$15="SEE YOUR RISK TEAM",Z14,IF($G$15="MEDIUM",X14,V14)) -> 5000000 | W24: =IF($G$15="SEE YOUR RISK TEAM",AA14,IF($G$15="MEDIUM",Y14,W14)) -> 7500000
A25: 4tph between Slough and Waterloo all stopping at Windsor | Q25: =ISBLANK(A25) -> FALSE | S25: High | T25: 0.375 | U25: =IF($G$15="SEE YOUR RISK TEAM",Z15,IF($G$15="MEDIUM",X15,V15)) -> 1000000 | W25: =IF($G$15="SEE YOUR RISK TEAM",AA15,IF($G$15="MEDIUM",Y15,W15)) -> 5000000
A26: Efficient & Attractive Transport Interchange | S26: Medium | T26: 0.175 | U26: =IF($G$15="SEE YOUR RISK TEAM",Z16,IF($G$15="MEDIUM",X16,V16)) -> 250000 | W26: =IF($G$15="SEE YOUR RISK TEAM",AA16,IF($G$15="MEDIUM",Y16,W16)) -> 1000000
A27: Minimal disruption to surrounding buildings | S27: Low | T27: 0.075 | U27: =IF($G$15="SEE YOUR RISK TEAM",Z17,IF($G$15="MEDIUM",X17,V17)) -> 50000 | W27: =IF($G$15="SEE YOUR RISK TEAM",AA17,IF($G$15="MEDIUM",Y17,W17)) -> 250000
A28: Affordable, Value for money scheme | J28: Categories of Qualitative risk assessment for specific risks identified (excluding Generic risk number) | S28: Very Low | T28: 0.025 | U28: 0 | W28: =IF($G$15="SEE YOUR RISK TEAM",AA18,IF($G$15="MEDIUM",Y18,W18)) -> 50000
A29: Keeping Windsor operational before, during and after construction | E29: Entry into ARM As a minimum a single line entry is required in ARM with a 100% probability to represent the project in accordance with the following. If specific risks are entered into ARM, the values need adjusting. Refer R&V Team for further advice. | S29: Nil | T29: 0 | U29: 0 | W29: 0
A30: Efficient low maintenance railcar system | J30: Routine | M30: =COUNTIF(Q$50:INDIRECT(P104),O3) -> 2
A31: Safe transport system | J31: Minor | M31: =COUNTIF(Q$50:INDIRECT(P104),O4) -> 6 | O31: Scored risks
J32: Significant | M32: =COUNTIF(Q$50:INDIRECT(P104),O5) -> 19 | O32: =SUM(M30:M34) -> 51
E33: ID | F33: Title | G33: Min | H33: ML | I33: Max | J33: Major | M33: =COUNTIF(Q$50:INDIRECT(P104),O6) -> 9
E34: =CONCATENATE(C12,"-",1) -> R-WLR-1 | F34: =CONCATENATE(C13," risk") -> Windsor Link Railway risk | G34: =H17*0.3 -> 6706131.9 | H34: =H17*0.9 -> 20118395.7 | I34: =H17*1.8 -> 40236791.4 | J34: Critical | M34: =COUNTIF(Q$50:INDIRECT(P104),O7) -> 15
P35: HIDE ROW
A36: =IF(#REF!="Do not use","- HIDE -","") ->  | B36: =IF(#REF!="Do not use","- HIDE -","") ->  | C36: =IF(#REF!="Do not use","- HIDE -","") ->  | D36: =IF(#REF!="Do not use","- HIDE -","") ->  | E36: =IF(#REF!="Do not use","- HIDE -","") ->  | F36: =IF(#REF!="Do not use","- HIDE -","") ->  | G36: =IF(#REF!="Do not use","- HIDE -","") ->  | H36: =IF(#REF!="Do not use","- HIDE -","") ->  | I36: =IF(#REF!="Do not use","- HIDE -","") ->  | J36: =IF(#REF!="Do not use","- HIDE -","") ->  | K36: =IF(#REF!="Do not use","- HIDE -","") ->  | M36: =IF(#REF!="Do not use","- HIDE -","") ->  | P36: HIDE ROW | Q36: =IF(#REF!="Do not use","- HIDE -","") ->  | R36: =IF(#REF!="Do not use","- HIDE -","") ->  | S36: =IF(#REF!="Do not use","- HIDE -","") ->  | T36: =IF(#REF!="Do not use","- HIDE -","") ->  | U36: =IF(#REF!="Do not use","- HIDE -","") ->  | V36: =IF(#REF!="Do not use","- HIDE -","") ->  | W36: =IF(#REF!="Do not use","- HIDE -","") ->  | X36: =IF(#REF!="Do not use","- HIDE -","") ->  | Y36: =IF(#REF!="Do not use","- HIDE -","") ->  | Z36: =IF(#REF!="Do not use","- HIDE -","") ->  | AA36: =IF(#REF!="Do not use","- HIDE -","") ->  | AB36: =IF(#REF!="Do not use","- HIDE -","") ->  | AC36: =IF(#REF!="Do not use","- HIDE -","") ->  | AD36: =IF(#REF!="Do not use","- HIDE -","") ->  | AE36: =IF(#REF!="Do not use","- HIDE -","") ->  | AF36: =IF(#REF!="Do not use","- HIDE -","") ->  | AG36: =IF(#REF!="Do not use","- HIDE -","") ->  | AH36: =IF(#REF!="Do not use","- HIDE -","") ->  | AI36: =IF(#REF!="Do not use","- HIDE -","") ->  | AJ36: =IF(#REF!="Do not use","- HIDE -","") ->  | AK36: =IF(#REF!="Do not use","- HIDE -","") ->  | AL36: =IF(#REF!="Do not use","- HIDE -","") ->  | AM36: =IF(#REF!="Do not use","- HIDE -","") ->  | AN36: =IF(#REF!="Do not use","- HIDE -","") ->  | AO36: =IF(#REF!="Do not use","- HIDE -","") ->  | AP36: =IF(#REF!="Do not use","- HIDE -","") ->  | AQ36: =IF(#REF!="Do not use","- HIDE -","") ->  | AR36: =IF(#REF!="Do not use","- HIDE -","") ->  | AS36: =IF(#REF!="Do not use","- HIDE -","") ->  | AT36: =IF(#REF!="Do not use","- HIDE -","") ->  | AU36: =IF(#REF!="Do not use","- HIDE -","") ->  | AV36: =IF(#REF!="Do not use","- HIDE -","") ->  | AW36: =IF(#REF!="Do not use","- HIDE -","") ->  | AX36: =IF(#REF!="Do not use","- HIDE -","") ->  | AY36: =IF(#REF!="Do not use","- HIDE -","") ->  | AZ36: =IF(#REF!="Do not use","- HIDE -","") ->  | BA36: =IF(#REF!="Do not use","- HIDE -","") ->  | BB36: =IF(#REF!="Do not use","- HIDE -","") ->  | BC36: =IF(#REF!="Do not use","- HIDE -","") ->  | BD36: =IF(#REF!="Do not use","- HIDE -","") ->  | BE36: =IF(#REF!="Do not use","- HIDE -","") ->  | BF36: =IF(#REF!="Do not use","- HIDE -","") ->  | BG36: =IF(#REF!="Do not use","- HIDE -","") ->  | BH36: =IF(#REF!="Do not use","- HIDE -","") ->  | BI36: =IF(#REF!="Do not use","- HIDE -","") ->  | BJ36: =IF(#REF!="Do not use","- HIDE -","") ->  | BK36: =IF(#REF!="Do not use","- HIDE -","") ->  | BL36: =IF(#REF!="Do not use","- HIDE -","") ->  | BM36: =IF(#REF!="Do not use","- HIDE -","") ->  | BN36: =IF(#REF!="Do not use","- HIDE -","") ->  | BO36: =IF(#REF!="Do not use","- HIDE -","") ->  | BP36: =IF(#REF!="Do not use","- HIDE -","") ->  | BQ36: =IF(#REF!="Do not use","- HIDE -","") ->  | BR36: =IF(#REF!="Do not use","- HIDE -","") ->  | BS36: =IF(#REF!="Do not use","- HIDE -","") ->  | BT36: =IF(#REF!="Do not use","- HIDE -","") ->  | BU36: =IF(#REF!="Do not use","- HIDE -","") ->  | BV36: =IF(#REF!="Do not use","- HIDE -","") ->  | BW36: =IF(#REF!="Do not use","- HIDE -","") ->  | BX36: =IF(#REF!="Do not use","- HIDE -","") ->  | BY36: =IF(#REF!="Do not use","- HIDE -","") ->  | BZ36: =IF(#REF!="Do not use","- HIDE -","") ->  | CA36: =IF(#REF!="Do not use","- HIDE -","") ->  | CB36: =IF(#REF!="Do not use","- HIDE -","") ->  | CC36: =IF(#REF!="Do not use","- HIDE -","") ->  | CD36: =IF(#REF!="Do not use","- HIDE -","") ->  | CE36: =IF(#REF!="Do not use","- HIDE -","") ->  | CF36: =IF(#REF!="Do not use","- HIDE -","") ->  | CG36: =IF(#REF!="Do not use","- HIDE -","") ->  | CH36: =IF(#REF!="Do not use","- HIDE -","") ->  | CI36: =IF(#REF!="Do not use","- HIDE -","") ->  | CJ36: =IF(#REF!="Do not use","- HIDE -","") ->  | CK36: =IF(#REF!="Do not use","- HIDE -","") ->  | CL36: =IF(#REF!="Do not use","- HIDE -","") ->  | CM36: =IF(#REF!="Do not use","- HIDE -","") ->  | CN36: =IF(#REF!="Do not use","- HIDE -","") ->  | CO36: =IF(#REF!="Do not use","- HIDE -","") ->  | CP36: =IF(#REF!="Do not use","- HIDE -","") ->  | CQ36: =IF(#REF!="Do not use","- HIDE -","") ->  | CR36: =IF(#REF!="Do not use","- HIDE -","") ->  | CS36: =IF(#REF!="Do not use","- HIDE -","") ->  | CT36: =IF(#REF!="Do not use","- HIDE -","") ->  | CU36: =IF(#REF!="Do not use","- HIDE -","") ->  | CV36: =IF(#REF!="Do not use","- HIDE -","") ->  | CW36: =IF(#REF!="Do not use","- HIDE -","") ->  | CX36: =IF(#REF!="Do not use","- HIDE -","") ->  | CY36: =IF(#REF!="Do not use","- HIDE -","") ->  | CZ36: =IF(#REF!="Do not use","- HIDE -","") ->  | DA36: =IF(#REF!="Do not use","- HIDE -","") ->  | DB36: =IF(#REF!="Do not use","- HIDE -","") ->  | DC36: =IF(#REF!="Do not use","- HIDE -","") ->  | DD36: =IF(#REF!="Do not use","- HIDE -","") ->  | DE36: =IF(#REF!="Do not use","- HIDE -","") ->  | DF36: =IF(#REF!="Do not use","- HIDE -","") ->  | DG36: =IF(#REF!="Do not use","- HIDE -","") ->  | DH36: =IF(#REF!="Do not use","- HIDE -","") ->  | DI36: =IF(#REF!="Do not use","- HIDE -","") ->  | DJ36: =IF(#REF!="Do not use","- HIDE -","") ->  | DK36: =IF(#REF!="Do not use","- HIDE -","") ->  | DL36: =IF(#REF!="Do not use","- HIDE -","") ->  | DM36: =IF(#REF!="Do not use","- HIDE -","") ->  | DN36: =IF(#REF!="Do not use","- HIDE -","") ->  | DO36: =IF(#REF!="Do not use","- HIDE -","") ->  | DP36: =IF(#REF!="Do not use","- HIDE -","") ->  | DQ36: =IF(#REF!="Do not use","- HIDE -","") ->  | DR36: =IF(#REF!="Do not use","- HIDE -","") ->  | DS36: =IF(#REF!="Do not use","- HIDE -","") ->  | DT36: =IF(#REF!="Do not use","- HIDE -","") ->  | DU36: =IF(#REF!="Do not use","- HIDE -","") ->  | DV36: =IF(#REF!="Do not use","- HIDE -","") ->  | DW36: =IF(#REF!="Do not use","- HIDE -","") ->  | DX36: =IF(#REF!="Do not use","- HIDE -","") ->  | DY36: =IF(#REF!="Do not use","- HIDE -","") ->  | DZ36: =IF(#REF!="Do not use","- HIDE -","") ->  | EA36: =IF(#REF!="Do not use","- HIDE -","") ->  | EB36: =IF(#REF!="Do not use","- HIDE -","") ->  | EC36: =IF(#REF!="Do not use","- HIDE -","") ->  | ED36: =IF(#REF!="Do not use","- HIDE -","") ->  | EE36: =IF(#REF!="Do not use","- HIDE -","") ->  | EF36: =IF(#REF!="Do not use","- HIDE -","") ->  | EG36: =IF(#REF!="Do not use","- HIDE -","") ->  | EH36: =IF(#REF!="Do not use","- HIDE -","") ->  | EI36: =IF(#REF!="Do not use","- HIDE -","") ->  | EJ36: =IF(#REF!="Do not use","- HIDE -","") ->  | EK36: =IF(#REF!="Do not use","- HIDE -","") ->  | EL36: =IF(#REF!="Do not use","- HIDE -","") ->  | EM36: =IF(#REF!="Do not use","- HIDE -","") ->  | EN36: =IF(#REF!="Do not use","- HIDE -","") -> 
P37: HIDE ROW | Q37: Nil | S37: Nil | T37: 0 | U37: Nil | W37: Nil | X37: 0 | Y37: Nil | AA37: Nil | AB37: 0 | AC37: Nil | AE37: Nil | AG37: Nil | AH37: 0 | AI37: Nil | AK37: Nil | AL37: 0 | AM37: Nil | AO37: Nil | AP37: 0 | AQ37: Nil | AS37: Nil | AT37: 0 | AU37: Nil | AW37: Nil | AX37: 0 | AY37: Nil | BA37: Nil | BB37: 0 | BC37: Nil | BE37: Nil | BF37: 0 | BG37: Nil | BI37: Nil | BJ37: 0 | BK37: Nil | BM37: Nil | BN37: 0 | BO37: Nil | BQ37: Nil | BR37: 0 | BS37: Nil | BU37: Nil | BV37: 0 | BW37: Nil | BY37: Nil | BZ37: 0 | CA37: Nil | CC37: Nil | CD37: 0 | CE37: Nil | CG37: Nil | CH37: 0 | CI37: Nil | CK37: Nil | CL37: 0 | CM37: Nil | CO37: Nil | CP37: 0 | CQ37: Nil | CS37: Nil | CT37: 0 | CU37: Nil | CW37: Nil | CX37: 0 | CY37: Nil | DA37: Nil | DB37: 0 | DC37: Nil | DE37: Nil | DF37: 0 | DG37: Nil | DI37: Nil | DJ37: 0 | DK37: Nil | DM37: Nil | DN37: 0 | DO37: Nil | DQ37: Nil | DR37: 0 | DS37: Nil | DU37: Nil | DV37: 0 | DW37: Nil | DY37: Nil | DZ37: 0 | EA37: Nil | EC37: Nil | ED37: 0 | EE37: Nil | EG37: Nil | EH37: 0 | EI37: Nil | EK37: Nil | EL37: 0 | EM37: Nil
J38: =IF(J49="Do not use","- HIDE -","") ->  | P38: HIDE ROW | Q38: Very Low | S38: Very Low | T38: 1 | U38: Very Low | W38: Very Low | X38: 1 | Y38: Very Low | AA38: Very Low | AB38: 1 | AC38: Very Low | AE38: Very Low | AG38: Very Low | AH38: 1 | AI38: Very Low | AK38: Very Low | AL38: 1 | AM38: Very Low | AO38: Very Low | AP38: 1 | AQ38: Very Low | AS38: Very Low | AT38: 1 | AU38: Very Low | AW38: Very Low | AX38: 1 | AY38: Very Low | BA38: Very Low | BB38: 1 | BC38: Very Low | BE38: Very Low | BF38: 1 | BG38: Very Low | BI38: Very Low | BJ38: 1 | BK38: Very Low | BM38: Very Low | BN38: 1 | BO38: Very Low | BQ38: Very Low | BR38: 1 | BS38: Very Low | BU38: Very Low | BV38: 1 | BW38: Very Low | BY38: Very Low | BZ38: 1 | CA38: Very Low | CC38: Very Low | CD38: 1 | CE38: Very Low | CG38: Very Low | CH38: 1 | CI38: Very Low | CK38: Very Low | CL38: 1 | CM38: Very Low | CO38: Very Low | CP38: 1 | CQ38: Very Low | CS38: Very Low | CT38: 1 | CU38: Very Low | CW38: Very Low | CX38: 1 | CY38: Very Low | DA38: Very Low | DB38: 1 | DC38: Very Low | DE38: Very Low | DF38: 1 | DG38: Very Low | DI38: Very Low | DJ38: 1 | DK38: Very Low | DM38: Very Low | DN38: 1 | DO38: Very Low | DQ38: Very Low | DR38: 1 | DS38: Very Low | DU38: Very Low | DV38: 1 | DW38: Very Low | DY38: Very Low | DZ38: 1 | EA38: Very Low | EC38: Very Low | ED38: 1 | EE38: Very Low | EG38: Very Low | EH38: 1 | EI38: Very Low | EK38: Very Low | EL38: 1 | EM38: Very Low
P39: HIDE ROW | Q39: Low | S39: Low | T39: 2 | U39: Low | W39: Low | X39: 2 | Y39: Low | AA39: Low | AB39: 2 | AC39: Low | AE39: Low | AG39: Low | AH39: 2 | AI39: Low | AK39: Low | AL39: 2 | AM39: Low | AO39: Low | AP39: 2 | AQ39: Low | AS39: Low | AT39: 2 | AU39: Low | AW39: Low | AX39: 2 | AY39: Low | BA39: Low | BB39: 2 | BC39: Low | BE39: Low | BF39: 2 | BG39: Low | BI39: Low | BJ39: 2 | BK39: Low | BM39: Low | BN39: 2 | BO39: Low | BQ39: Low | BR39: 2 | BS39: Low | BU39: Low | BV39: 2 | BW39: Low | BY39: Low | BZ39: 2 | CA39: Low | CC39: Low | CD39: 2 | CE39: Low | CG39: Low | CH39: 2 | CI39: Low | CK39: Low | CL39: 2 | CM39: Low | CO39: Low | CP39: 2 | CQ39: Low | CS39: Low | CT39: 2 | CU39: Low | CW39: Low | CX39: 2 | CY39: Low | DA39: Low | DB39: 2 | DC39: Low | DE39: Low | DF39: 2 | DG39: Low | DI39: Low | DJ39: 2 | DK39: Low | DM39: Low | DN39: 2 | DO39: Low | DQ39: Low | DR39: 2 | DS39: Low | DU39: Low | DV39: 2 | DW39: Low | DY39: Low | DZ39: 2 | EA39: Low | EC39: Low | ED39: 2 | EE39: Low | EG39: Low | EH39: 2 | EI39: Low | EK39: Low | EL39: 2 | EM39: Low
P40: HIDE ROW | Q40: Medium | S40: Medium | T40: 3 | U40: Medium | W40: Medium | X40: 3 | Y40: Medium | AA40: Medium | AB40: 3 | AC40: Medium | AE40: Medium | AG40: Medium | AH40: 3 | AI40: Medium | AK40: Medium | AL40: 3 | AM40: Medium | AO40: Medium | AP40: 3 | AQ40: Medium | AS40: Medium | AT40: 3 | AU40: Medium | AW40: Medium | AX40: 3 | AY40: Medium | BA40: Medium | BB40: 3 | BC40: Medium | BE40: Medium | BF40: 3 | BG40: Medium | BI40: Medium | BJ40: 3 | BK40: Medium | BM40: Medium | BN40: 3 | BO40: Medium | BQ40: Medium | BR40: 3 | BS40: Medium | BU40: Medium | BV40: 3 | BW40: Medium | BY40: Medium | BZ40: 3 | CA40: Medium | CC40: Medium | CD40: 3 | CE40: Medium | CG40: Medium | CH40: 3 | CI40: Medium | CK40: Medium | CL40: 3 | CM40: Medium | CO40: Medium | CP40: 3 | CQ40: Medium | CS40: Medium | CT40: 3 | CU40: Medium | CW40: Medium | CX40: 3 | CY40: Medium | DA40: Medium | DB40: 3 | DC40: Medium | DE40: Medium | DF40: 3 | DG40: Medium | DI40: Medium | DJ40: 3 | DK40: Medium | DM40: Medium | DN40: 3 | DO40: Medium | DQ40: Medium | DR40: 3 | DS40: Medium | DU40: Medium | DV40: 3 | DW40: Medium | DY40: Medium | DZ40: 3 | EA40: Medium | EC40: Medium | ED40: 3 | EE40: Medium | EG40: Medium | EH40: 3 | EI40: Medium | EK40: Medium | EL40: 3 | EM40: Medium
P41: HIDE ROW | Q41: High | S41: High | T41: 4 | U41: High | W41: High | X41: 4 | Y41: High | AA41: High | AB41: 4 | AC41: High | AE41: High | AG41: High | AH41: 4 | AI41: High | AK41: High | AL41: 4 | AM41: High | AO41: High | AP41: 4 | AQ41: High | AS41: High | AT41: 4 | AU41: High | AW41: High | AX41: 4 | AY41: High | BA41: High | BB41: 4 | BC41: High | BE41: High | BF41: 4 | BG41: High | BI41: High | BJ41: 4 | BK41: High | BM41: High | BN41: 4 | BO41: High | BQ41: High | BR41: 4 | BS41: High | BU41: High | BV41: 4 | BW41: High | BY41: High | BZ41: 4 | CA41: High | CC41: High | CD41: 4 | CE41: High | CG41: High | CH41: 4 | CI41: High | CK41: High | CL41: 4 | CM41: High | CO41: High | CP41: 4 | CQ41: High | CS41: High | CT41: 4 | CU41: High | CW41: High | CX41: 4 | CY41: High | DA41: High | DB41: 4 | DC41: High | DE41: High | DF41: 4 | DG41: High | DI41: High | DJ41: 4 | DK41: High | DM41: High | DN41: 4 | DO41: High | DQ41: High | DR41: 4 | DS41: High | DU41: High | DV41: 4 | DW41: High | DY41: High | DZ41: 4 | EA41: High | EC41: High | ED41: 4 | EE41: High | EG41: High | EH41: 4 | EI41: High | EK41: High | EL41: 4 | EM41: High
P42: HIDE ROW | Q42: Very High | S42: Very High | T42: 5 | U42: Very High | W42: Very High | X42: 5 | Y42: Very High | AA42: Very High | AB42: 5 | AC42: Very High | AE42: Very High | AG42: Very High | AH42: 5 | AI42: Very High | AK42: Very High | AL42: 5 | AM42: Very High | AO42: Very High | AP42: 5 | AQ42: Very High | AS42: Very High | AT42: 5 | AU42: Very High | AW42: Very High | AX42: 5 | AY42: Very High | BA42: Very High | BB42: 5 | BC42: Very High | BE42: Very High | BF42: 5 | BG42: Very High | BI42: Very High | BJ42: 5 | BK42: Very High | BM42: Very High | BN42: 5 | BO42: Very High | BQ42: Very High | BR42: 5 | BS42: Very High | BU42: Very High | BV42: 5 | BW42: Very High | BY42: Very High | BZ42: 5 | CA42: Very High | CC42: Very High | CD42: 5 | CE42: Very High | CG42: Very High | CH42: 5 | CI42: Very High | CK42: Very High | CL42: 5 | CM42: Very High | CO42: Very High | CP42: 5 | CQ42: Very High | CS42: Very High | CT42: 5 | CU42: Very High | CW42: Very High | CX42: 5 | CY42: Very High | DA42: Very High | DB42: 5 | DC42: Very High | DE42: Very High | DF42: 5 | DG42: Very High | DI42: Very High | DJ42: 5 | DK42: Very High | DM42: Very High | DN42: 5 | DO42: Very High | DQ42: Very High | DR42: 5 | DS42: Very High | DU42: Very High | DV42: 5 | DW42: Very High | DY42: Very High | DZ42: 5 | EA42: Very High | EC42: Very High | ED42: 5 | EE42: Very High | EG42: Very High | EH42: 5 | EI42: Very High | EK42: Very High | EL42: 5 | EM42: Very High
P43: HIDE ROW | S43: Qualitative | W43: Qualitative | AA43: Qualitative | AE43: Qualitative | AG43: Qualitative | AK43: Qualitative | AO43: Qualitative | AS43: Qualitative | AW43: Qualitative | BA43: Qualitative | BE43: Qualitative | BI43: Qualitative | BM43: Qualitative | BQ43: Qualitative | BU43: Qualitative | BY43: Qualitative | CC43: Qualitative | CG43: Qualitative | CK43: Qualitative | CO43: Qualitative | CS43: Qualitative | CW43: Qualitative | DA43: Qualitative | DE43: Qualitative | DI43: Qualitative | DM43: Qualitative | DQ43: Qualitative | DU43: Qualitative | DY43: Qualitative | EC43: Qualitative | EG43: Qualitative | EK43: Qualitative
P44: HIDE ROW | Q44: Cost impact | R44: Time | S44: Probability | T44: Cost | U44: Cost impact | V44: Time | W44: Probability | X44: Cost | Y44: Cost impact | Z44: Time | AA44: Probability | AB44: Cost | AC44: Cost impact | AD44: Time | AE44: Probability | AF44: Time | AG44: Probability | AH44: Cost | AI44: Cost impact | AJ44: Time | AK44: Probability | AL44: Cost | AM44: Cost impact | AN44: Time | AO44: Probability | AP44: Cost | AQ44: Cost impact | AR44: Time | AS44: Probability | AT44: Cost | AU44: Cost impact | AV44: Time | AW44: Probability | AX44: Cost | AY44: Cost impact | AZ44: Time | BA44: Probability | BB44: Cost | BC44: Cost impact | BD44: Time | BE44: Probability | BF44: Cost | BG44: Cost impact | BH44: Time | BI44: Probability | BJ44: Cost | BK44: Cost impact | BL44: Time | BM44: Probability | BN44: Cost | BO44: Cost impact | BP44: Time | BQ44: Probability | BR44: Cost | BS44: Cost impact | BT44: Time | BU44: Probability | BV44: Cost | BW44: Cost impact | BX44: Time | BY44: Probability | BZ44: Cost | CA44: Cost impact | CB44: Time | CC44: Probability | CD44: Cost | CE44: Cost impact | CF44: Time | CG44: Probability | CH44: Cost | CI44: Cost impact | CJ44: Time | CK44: Probability | CL44: Cost | CM44: Cost impact | CN44: Time | CO44: Probability | CP44: Cost | CQ44: Cost impact | CR44: Time | CS44: Probability | CT44: Cost | CU44: Cost impact | CV44: Time | CW44: Probability | CX44: Cost | CY44: Cost impact | CZ44: Time | DA44: Probability | DB44: Cost | DC44: Cost impact | DD44: Time | DE44: Probability | DF44: Cost | DG44: Cost impact | DH44: Time | DI44: Probability | DJ44: Cost | DK44: Cost impact | DL44: Time | DM44: Probability | DN44: Cost | DO44: Cost impact | DP44: Time | DQ44: Probability | DR44: Cost | DS44: Cost impact | DT44: Time | DU44: Probability | DV44: Cost | DW44: Cost impact | DX44: Time | DY44: Probability | DZ44: Cost | EA44: Cost impact | EB44: Time | EC44: Probability | ED44: Cost | EE44: Cost impact | EF44: Time | EG44: Probability | EH44: Cost | EI44: Cost impact | EJ44: Time | EK44: Probability | EL44: Cost | EM44: Cost impact | EN44: Time
P45: HIDE ROW
P46: HIDE ROW
A47: Specific Risks (suggested by the Checklist or otherwise identified) | F47: Treatment Action | J47: Residual risk scores post treatment | V47: Mean Total | W47: =SUM(W49:INDIRECT(W104)) -> 22353750 | X47: =W47/C15 -> 0.05961
Q48: TODAYS DATE | R48: =TODAY() -> 2017-08-22 | S48: Current quantitative cost impact (£)
A49: Objective | B49: RiskID (OP code+nnn) | C49: Risk description (Cause/Risk/Effect) | D49: Status | E49: Risk Owner (Surname, First name) | F49: Action description | G49: Action Owner (Surname, First name) | H49: Action Status | I49: Action due date | J49: Probability | K49: Cost | M49: Time | O49: Current Score | P49: CALCS | S49: Probability | T49: Minimum | U49: Most Likely | V49: Maximum | W49: Output
A50: Affordable, Value for money scheme | B50: WLR -001 | C50: Poor ground condition of Central Windsor and ability to form the route | D50: Open | E50: McPhee,Jon | F50: Perform a suitable Phase 1 and 2 geological/geotechnical assessment to assess ground conditions. Appropriate design | G50: McPhee,Jon | H50: Open | I50: TBA | J50: Medium | K50: High | M50: High | N50: =IF(AND(J50<>$J$2,OR(K50<>$J$2,M50<>$J$2)),(VLOOKUP(J50,$J$2:$K$7,2,FALSE))+(IF(VLOOKUP(K50,$J$2:$K$7,2,FALSE)>VLOOKUP(M50,$J$2:$K$7,2,FALSE),VLOOKUP(K50,$J$2:$K$7,2,FALSE),VLOOKUP(M50,$J$2:$K$7,2,FALSE))),0) -> 7 | O50: =IF(N50=0,$O$2,IF(OR(N50=1,N50=2),$O$3,IF(AND(N50>2,N50<5),$O$4,IF(AND(N50>4,N50<7),$O$5,IF(N50=7,$O$6,$O$7))))) -> Major | P50: =IF(AND(OR(D50=$D$2,D50=$D$5)),CONCATENATE(J50,VLOOKUP(MAX(VLOOKUP(K50,$J$2:$K$7,2,FALSE),VLOOKUP(M50,$J$2:$K$7,2,FALSE)),$K$2:$L$7,2,FALSE)),CONCATENATE($J$2,$J$2)) -> MediumHigh | Q50: =IF(AND(OR(D50=$D$2,D50=$D$5)),O50,$O$2) -> Major | S50: =IF(D50="Open",VLOOKUP($J50,$S$24:$EV$29,2,FALSE),) -> 0.175 | T50: =IF(D50="Open",VLOOKUP($K50,$S$24:$U$29,3,FALSE),) -> 1000000 | V50: =IF(D50="Open",VLOOKUP($K50,$S$24:$W$29,5,FALSE),) -> 5000000 | W50: =(T50+(V50-T50)/2)*S50 -> 525000
A51: A new single station for Windsor | B51: WLR -002 | C51: The proximity of the river to proposed route. | D51: Open | E51: McPhee,Jon | F51: Acquire an enviromental study to inform the risk | G51: McPhee,Jon | H51: Open | I51: TBA | J51: Low | K51: Medium | M51: Medium | N51: 5 | O51: =IF(N51=0,$O$2,IF(OR(N51=1,N51=2),$O$3,IF(AND(N51>2,N51<5),$O$4,IF(AND(N51>4,N51<7),$O$5,IF(N51=7,$O$6,$O$7))))) -> Significant | P51: LowMedium | Q51: Significant | S51: =IF(D51="Open",VLOOKUP($J51,$S$24:$EV$29,2,FALSE),) -> 0.075 | T51: =IF(D51="Open",VLOOKUP($K51,$S$24:$U$29,3,FALSE),) -> 250000 | V51: =IF(D51="Open",VLOOKUP($K51,$S$24:$W$29,5,FALSE),) -> 1000000 | W51: =(T51+(V51-T51)/2)*S51 -> 46875
A52: Efficient & Attractive Transport Interchange | B52: WLR -003 | C52: Planning and approvals risk | D52: Open | E52: McPhee,Jon | F52: Early engagement with Stakeholders | G52: Bathurst, George | H52: Open | I52: TBA | J52: High | K52: Low | M52: High | N52: 8 | O52: =IF(N52=0,$O$2,IF(OR(N52=1,N52=2),$O$3,IF(AND(N52>2,N52<5),$O$4,IF(AND(N52>4,N52<7),$O$5,IF(N52=7,$O$6,$O$7))))) -> Critical | P52: HighHigh | Q52: Critical | S52: 0.375 | T52: 50000 | V52: 250000 | W52: 56250
A53: Minimal disruption to surrounding buildings | B53: WLR -004 | C53: Existign building stability and settlement during construction and operation | D53: Open | E53: McPhee,Jon | F53: Reduce vibration and noise through appropriate construction methods and in track-slab design. | G53: McPhee,Jon | H53: Open | I53: TBA | J53: High | K53: Medium | M53: Medium | N53: 7 | O53: Major | P53: HighMedium | Q53: Major | S53: =IF(D53="Open",VLOOKUP($J53,$S$24:$EV$29,2,FALSE),) -> 0.375 | T53: =IF(D53="Open",VLOOKUP($K53,$S$24:$U$29,3,FALSE),) -> 250000 | V53: =IF(D53="Open",VLOOKUP($K53,$S$24:$W$29,5,FALSE),) -> 1000000 | W53: =(T53+(V53-T53)/2)*S53 -> 234375
A54: Minimal disruption to surrounding buildings | B54: WLR -005 | C54: General noise during construction causing injunctions delaying works | D54: Open | E54: McPhee,Jon | F54: Reduce vibration and noise through low vibration and noise installation methods | G54: McPhee,Jon | H54: Open | I54: TBA | J54: Medium | K54: Low | M54: Very Low | N54: 5 | O54: Significant | P54: =IF(AND(OR(D54=$D$2,D54=$D$5)),CONCATENATE(J54,VLOOKUP(MAX(VLOOKUP(K54,$J$2:$K$7,2,FALSE),VLOOKUP(M54,$J$2:$K$7,2,FALSE)),$K$2:$L$7,2,FALSE)),CONCATENATE($J$2,$J$2)) -> MediumLow | Q54: =IF(AND(OR(D54=$D$2,D54=$D$5)),O54,$O$2) -> Significant | S54: =IF(D54="Open",VLOOKUP($J54,$S$24:$EV$29,2,FALSE),) -> 0.175 | T54: =IF(D54="Open",VLOOKUP($K54,$S$24:$U$29,3,FALSE),) -> 50000 | V54: =IF(D54="Open",VLOOKUP($K54,$S$24:$W$29,5,FALSE),) -> 250000 | W54: =(T54+(V54-T54)/2)*S54 -> 26250
A55: Affordable, Value for money scheme | B55: WLR -006 | C55: Ground contamination risks due to works | D55: Open | E55: McPhee,Jon | F55: Undertake an environmental study of ground water and aquifers | G55: McPhee,Jon | H55: Open | I55: TBA | J55: Very Low | K55: Very High | M55: High | N55: 6 | O55: Significant | P55: Very LowVery High | Q55: Significant | S55: 0.025 | T55: 5000000 | V55: 7500000 | W55: 156250
A56: Affordable, Value for money scheme | B56: WLR -007 | C56: Stakeholder views cause disruption and delay | D56: Open | E56: McPhee,Jon | F56: Early engagement with Stakeholders | G56: Bathurst, George | H56: Open | I56: TBA | J56: High | K56: Medium | M56: High | N56: 8 | O56: Critical | P56: HighHigh | Q56: Critical | S56: 0.375 | T56: 250000 | V56: 1000000 | W56: 234375
A57: Affordable, Value for money scheme | B57: WLR -008 | C57: Land acquisition strategy - Local Landowners | D57: Open | E57: McPhee,Jon | F57: Early engagement with Stakeholders | G57: Bathurst, George | H57: Open | I57: TBA | J57: High | K57: Medium | M57: High | N57: 8 | O57: Critical
A58: Affordable, Value for money scheme | B58: WLR -009 | C58: Land acquisition strategy -Council Land | D58: Open | E58: McPhee,Jon | F58: Early engagement with Stakeholders | G58: Bathurst, George | H58: Open | I58: TBA | J58: High | K58: Medium | M58: High | N58: 8 | O58: Critical
A59: Affordable, Value for money scheme | B59: WLR -010 | C59: Land acquisition strategy - National Trust | D59: Open | E59: McPhee,Jon | F59: Early engagement with Stakeholders | G59: Bathurst, George | H59: Open | I59: TBA | J59: High | K59: Medium | M59: High | N59: 8 | O59: Critical | P59: HighHigh | Q59: Critical | S59: 0.375 | T59: 250000 | V59: 1000000 | W59: 234375
A60: Affordable, Value for money scheme | B60: WLR -011 | C60: Confirmation of ability to proceed with a signed off development agreement | D60: Open | E60: McPhee,Jon | F60: Full engagement with Network Rail | G60: Bathurst, George | H60: Open | I60: TBA | J60: Very Low | K60: Very High | M60: Very High | N60: 6 | O60: Significant | P60: Very LowVery High | Q60: Significant | S60: 0.025 | T60: 5000000 | V60: 7500000 | W60: 156250
A61: Keep Windsor operational | B61: WLR -012 | C61: Utilities disruption / re-routing | D61: Open | E61: McPhee,Jon | F61: Acquire a detailed services study/report | G61: McPhee,Jon | H61: Open | I61: TBA | J61: Very High | K61: Very High | M61: Medium | N61: 10 | O61: Critical | P61: Very HighVery High | Q61: Critical | S61: 0.625 | T61: 5000000 | V61: 7500000 | W61: 3906250
A62: Affordable, Value for money scheme | B62: WLR -013 | C62: Archaeology remains discovered. | D62: Open | E62: McPhee,Jon | F62: Acquire an archaeological baseline report. | G62: McPhee,Jon | H62: Open | I62: TBA | J62: High | K62: Medium | M62: High | N62: 8 | O62: Critical | P62: HighHigh | Q62: Critical | S62: =IF(D62="Open",VLOOKUP($J62,$S$24:$EV$29,2,FALSE),) -> 0.375 | T62: =IF(D62="Open",VLOOKUP($K62,$S$24:$U$29,3,FALSE),) -> 250000 | V62: =IF(D62="Open",VLOOKUP($K62,$S$24:$W$29,5,FALSE),) -> 1000000 | W62: =(T62+(V62-T62)/2)*S62 -> 234375
A63: 4tph between Slough and Waterloo all stopping at Windsor | B63: WLR -014 | C63: The rolling stock assumptions are proven incorrect or not possible, requiring additional infrastructure interventions outside of the immediate WLR area (eg Waterloo) | D63: Open | E63: McPhee,Jon | F63: Approproate definition of the base case design envelope to exclude this | G63: Bathurst, George | H63: Open | I63: TBA | J63: Medium | K63: Very High | M63: Very High | N63: 8 | O63: Critical | P63: MediumVery High | Q63: Critical | S63: 0.175 | T63: 5000000 | V63: 7500000 | W63: 1093750
A64: 4tph between Slough and Waterloo all stopping at Windsor | B64: WLR -015 | C64: The proposed train specification proposed by Windsor Link Railway cannot operate on the infrastructure both within Windsor and beyond towards London. | D64: Open | E64: McPhee,Jon | F64: Approproate definition of the base case service to Staines and Train Model at GRIP 3 | G64: Bathurst, George | H64: Open | I64: TBA | J64: Medium | K64: Very High | M64: Very High | N64: 8 | O64: Critical | P64: MediumVery High | Q64: Critical | S64: 0.175 | T64: 5000000 | V64: 7500000 | W64: 1093750
A65: Affordable, Value for money scheme | B65: WLR -016 | C65: Risk of finding Unexploded Ordnance | D65: Open | E65: McPhee,Jon | F65: Acquire a UXO risk report/desk study. | G65: McPhee,Jon | H65: Open | I65: TBA | J65: Medium | K65: Medium | M65: Low | N65: 6 | O65: Significant | P65: MediumMedium | Q65: Significant | S65: 0.175 | T65: 250000 | V65: 1000000 | W65: 109375
A66: 4tph between Slough and Waterloo all stopping at Windsor | B66: WLR -017 | C66: A single track solution is adopted between the Thames River Crossing and East of Riverside Station with passing at the new Station which unacceptably limits the number of trains per hour. | D66: Open | E66: McPhee,Jon | F66: A simple Train Model/ timetable analysis is required to evidence capacity | G66: McPhee,Jon | H66: Open | I66: TBA | J66: Low | K66: Very High | M66: Very Low | N66: 7 | O66: Major | P66: LowVery High | Q66: Major | S66: 0.075 | T66: 5000000 | V66: 7500000 | W66: 468750
A67: A new single station for Windsor | B67: WLR -018 | C67: The existing properties have basement structures within the highways being used for the new subsurface route. | D67: Open | E67: McPhee,Jon | F67: A survey of all buildings is required to understand existing assets | G67: McPhee,Jon | H67: Open | I67: TBA | J67: Low | K67: High | M67: High | N67: 6 | O67: Significant | P67: LowHigh | Q67: Significant | S67: 0.075 | T67: 1000000 | V67: 5000000 | W67: 225000
A68: 4tph between Slough and Waterloo all stopping at Windsor | B68: WLR -019 | C68: A double track solution is required to achieve four trains per hour and this is unaffordable or unnacceptable to the project. | D68: Open | E68: McPhee,Jon | F68: Timetable and Comprehensive Cost Plan developed at GRIP 3 | G68: McPhee,Jon | H68: Open | I68: TBA | J68: Medium | K68: Very High | M68: Very High | N68: 8 | O68: Critical | P68: MediumVery High | Q68: Critical | S68: 0.175 | T68: 5000000 | V68: 7500000 | W68: 1093750
A69: Minimal disruption to surrounding buildings | B69: WLR -020 | C69: Concern over vibration levels for new developments, over the sub-surface length | D69: Open | E69: McPhee,Jon | F69: Reduce vibration noice and motion throught isolated track-slab design. | G69: McPhee,Jon | H69: Open | I69: TBA | J69: Medium | K69: High | M69: Low | N69: 7 | O69: Major | P69: MediumHigh | Q69: Major
A70: Efficient low maintenance railcar system | B70: WLR -021 | C70: No room for error on design and build as level requirements are very tight for tunnel gradients and radii. | D70: Open | E70: McPhee,Jon | F70: Early GRIP 3 Track design to ensure as much confidence is developed as possible | G70: McPhee,Jon | H70: Open | I70: TBA | J70: Medium | K70: Medium | M70: Medium | N70: 6 | O70: Significant | P70: MediumMedium | Q70: Significant
A71: Efficient low maintenance railcar system | B71: WLR -022 | C71: Safety of passengers needing to disembark if a train breaks down within the sub-surface length | D71: Open | E71: McPhee,Jon | F71: Provision of safe cess walkway in tunnel | G71: McPhee,Jon | H71: Open | I71: TBA | J71: Very Low | K71: Medium | M71: Low | N71: 4 | O71: Minor | P71: Very LowMedium | Q71: Minor
A72: Keep Windsor operational | B72: WLR -023 | C72: Disruption to local economy during implementation | D72: Open | E72: McPhee,Jon | F72: Limit road closures where possible and employ good TM management providing advanced notice to drivers and businesses. | G72: McPhee,Jon | H72: Open | I72: TBA | J72: Very High | K72: Low | M72: Very Low | N72: 7 | O72: Major | P72: Very HighLow | Q72: Major
A73: Keep Windsor operational | B73: WLR -024 | C73: Disruption to existing railway during construction | D73: Open | E73: McPhee,Jon | F73: Aim to keep the current railway operational for as long as possible during construction works. | G73: McPhee,Jon | H73: Open | I73: TBA | J73: Very High | K73: Low | M73: Very Low | N73: 7 | O73: Major | P73: Very HighLow | Q73: Major
A74: Keep Windsor operational | B74: WLR -025 | C74: Disruption to existing foot and cyle traffic during construction | D74: Open | E74: McPhee,Jon | F74: Provide alternative safe walking and cycling routes | G74: McPhee,Jon | H74: Open | I74: TBA | J74: Very High | K74: Very Low | M74: Very Low | N74: 6 | O74: Significant | P74: Very HighVery Low | Q74: Significant | S74: 0.625 | T74: 0 | V74: 50000 | W74: 15625
A75: Keep Windsor operational | B75: WLR -026 | C75: State Visits and Funerals are carried out without notice and works need to be flexible. | D75: Open | E75: McPhee,Jon | F75: Understand the typical scenario and include within the construction phasing. | G75: McPhee,Jon | H75: Open | I75: TBA | J75: Very High | K75: Very Low | M75: Very Low | N75: 6 | O75: Significant | P75: =IF(AND(OR(D75=$D$2,D75=$D$5)),CONCATENATE(J75,VLOOKUP(MAX(VLOOKUP(K75,$J$2:$K$7,2,FALSE),VLOOKUP(M75,$J$2:$K$7,2,FALSE)),$K$2:$L$7,2,FALSE)),CONCATENATE($J$2,$J$2)) -> Very HighVery Low | Q75: =IF(AND(OR(D75=$D$2,D75=$D$5)),O75,$O$2) -> Significant | S75: =IF(D75="Open",VLOOKUP($J75,$S$24:$EV$29,2,FALSE),) -> 0.625 | T75: =IF(D75="Open",VLOOKUP($K75,$S$24:$U$29,3,FALSE),) -> 0 | V75: =IF(D75="Open",VLOOKUP($K75,$S$24:$W$29,5,FALSE),) -> 50000 | W75: =(T75+(V75-T75)/2)*S75 -> 15625
A76: 4tph between Slough and Waterloo all stopping at Windsor | B76: WLR -027 | C76: Franchise Process fails to include for WLR proposals | D76: Open | E76: McPhee,Jon | F76: Early engagement with DfT regarding new franchise | G76: Bathurst, George | H76: Open | I76: TBA | J76: Very High | K76: Medium | M76: Very Low | N76: 8 | O76: Critical | P76: =IF(AND(OR(D76=$D$2,D76=$D$5)),CONCATENATE(J76,VLOOKUP(MAX(VLOOKUP(K76,$J$2:$K$7,2,FALSE),VLOOKUP(M76,$J$2:$K$7,2,FALSE)),$K$2:$L$7,2,FALSE)),CONCATENATE($J$2,$J$2)) -> Very HighMedium | Q76: =IF(AND(OR(D76=$D$2,D76=$D$5)),O76,$O$2) -> Critical | S76: =IF(D76="Open",VLOOKUP($J76,$S$24:$EV$29,2,FALSE),) -> 0.625 | T76: =IF(D76="Open",VLOOKUP($K76,$S$24:$U$29,3,FALSE),) -> 250000 | V76: =IF(D76="Open",VLOOKUP($K76,$S$24:$W$29,5,FALSE),) -> 1000000 | W76: =(T76+(V76-T76)/2)*S76 -> 390625
A77: A new single station for Windsor | B77: WLR -028 | C77: New platforms should not be on a curved track of less than 1000m radius. WLR is 300m potentially. | D77: Open | E77: McPhee,Jon | F77: Develop GRIP2 to maximise the straightest length of platform possible | G77: McPhee,Jon | H77: Open | I77: TBA | J77: Medium | K77: Low | M77: Low | N77: 5 | O77: Significant | P77: MediumLow | Q77: Significant | S77: 0.175 | T77: 50000 | V77: 250000 | W77: 26250
A78: A new single station for Windsor | B78: WLR -029 | C78: Track speed causes high cant values which are inappropriate for platforms | D78: Open | E78: McPhee,Jon | F78: Limit track speed whilst keeping 4tph and all trains stopping | G78: McPhee,Jon | H78: Open | I78: TBA | J78: Low | K78: Very Low | M78: Very Low | N78: 3 | O78: Minor | P78: =IF(AND(OR(D78=$D$2,D78=$D$5)),CONCATENATE(J78,VLOOKUP(MAX(VLOOKUP(K78,$J$2:$K$7,2,FALSE),VLOOKUP(M78,$J$2:$K$7,2,FALSE)),$K$2:$L$7,2,FALSE)),CONCATENATE($J$2,$J$2)) -> LowVery Low | Q78: =IF(AND(OR(D78=$D$2,D78=$D$5)),O78,$O$2) -> Minor | S78: =IF(D78="Open",VLOOKUP($J78,$S$24:$EV$29,2,FALSE),) -> 0.075 | T78: =IF(D78="Open",VLOOKUP($K78,$S$24:$U$29,3,FALSE),) -> 0 | V78: =IF(D78="Open",VLOOKUP($K78,$S$24:$W$29,5,FALSE),) -> 50000 | W78: =(T78+(V78-T78)/2)*S78 -> 1875
A79: Efficient low maintenance railcar system | B79: WLR -030 | C79: Track speed causes high cant values which are inappropriate for switches | D79: Open | E79: McPhee,Jon | F79: Develop GRIP2 to ensure track systems are functional | G79: McPhee,Jon | H79: Open | I79: TBA | J79: Low | K79: Very Low | M79: Very Low | N79: 3 | O79: Minor | P79: LowVery Low | Q79: Minor | S79: 0.075 | T79: 0 | V79: 50000 | W79: 1875
A80: Efficient low maintenance railcar system | B80: WLR -031 | C80: Gradients cause wheel slippage when combined with tight radius | D80: Open | E80: McPhee,Jon | F80: Develop GRIP2 to ensure rolling stock are functional | G80: McPhee,Jon | H80: Open | I80: TBA | J80: Medium | K80: Low | M80: Very Low | N80: 5 | O80: Significant | P80: MediumLow | Q80: Significant | S80: 0.175 | T80: 50000 | V80: 250000 | W80: 26250
A81: Efficient low maintenance railcar system | B81: WLR -032 | C81: Broken down trains within the tunnel unrecoverable due to gradient | D81: Open | E81: McPhee,Jon | F81: Ensure capacity of existing rolling stock to push broken down trains out | G81: McPhee,Jon | H81: Open | I81: TBA | J81: Very Low | K81: Very Low | M81: Very Low | N81: 2 | O81: Routine | P81: Very LowVery Low | Q81: Routine | S81: 0.025 | T81: 0 | V81: 50000 | W81: 625
A82: Efficient low maintenance railcar system | B82: WLR -033 | C82: Migration of curves at bottom of ramp approaches the switch | D82: Open | E82: McPhee,Jon | F82: Use of track slab will prevent track profile changes | G82: McPhee,Jon | H82: Open | I82: TBA | J82: Very Low | K82: Medium | M82: Low | N82: 4 | O82: Minor | P82: Very LowMedium | Q82: Minor | S82: 0.025 | T82: 250000 | V82: 1000000 | W82: 15625
A83: 4tph between Slough and Waterloo all stopping at Windsor | B83: WLR -034 | C83: Capacity of the existing track outside of the immediate WLR area can not support four trains per hour. | D83: Open | E83: McPhee,Jon | F83: Approproate definition of the base case service to Waterloo and Train Model at GRIP 3 | G83: Bathurst, George | H83: Open | I83: TBA | J83: Very Low | K83: Very High | M83: Very High | N83: 6 | O83: Significant | P83: =IF(AND(OR(D83=$D$2,D83=$D$5)),CONCATENATE(J83,VLOOKUP(MAX(VLOOKUP(K83,$J$2:$K$7,2,FALSE),VLOOKUP(M83,$J$2:$K$7,2,FALSE)),$K$2:$L$7,2,FALSE)),CONCATENATE($J$2,$J$2)) -> Very LowVery High | Q83: =IF(AND(OR(D83=$D$2,D83=$D$5)),O83,$O$2) -> Significant | S83: =IF(D83="Open",VLOOKUP($J83,$S$24:$EV$29,2,FALSE),) -> 0.025 | T83: =IF(D83="Open",VLOOKUP($K83,$S$24:$U$29,3,FALSE),) -> 5000000 | V83: =IF(D83="Open",VLOOKUP($K83,$S$24:$W$29,5,FALSE),) -> 7500000 | W83: =(T83+(V83-T83)/2)*S83 -> 156250
A84: Affordable, Value for money scheme | B84: WLR -035 | C84: A substantial upgrade to the signalling system is required | D84: Open | E84: McPhee,Jon | F84: Review required at GRIP 3 | G84: McPhee,Jon | H84: Open | I84: TBA | J84: High | K84: High | M84: High | N84: 8 | O84: Critical | P84: HighHigh | Q84: Critical | S84: 0.375 | T84: 1000000 | V84: 5000000 | W84: 1125000
A85: Affordable, Value for money scheme | B85: WLR -036 | C85: A substantial upgrade to the power system is required | D85: Open | E85: McPhee,Jon | F85: Review required at GRIP 3 | G85: McPhee,Jon | H85: Open | I85: TBA | J85: High | K85: High | M85: High | N85: 8 | O85: Critical | P85: =IF(AND(OR(D85=$D$2,D85=$D$5)),CONCATENATE(J85,VLOOKUP(MAX(VLOOKUP(K85,$J$2:$K$7,2,FALSE),VLOOKUP(M85,$J$2:$K$7,2,FALSE)),$K$2:$L$7,2,FALSE)),CONCATENATE($J$2,$J$2)) -> HighHigh | Q85: =IF(AND(OR(D85=$D$2,D85=$D$5)),O85,$O$2) -> Critical | S85: =IF(D85="Open",VLOOKUP($J85,$S$24:$EV$29,2,FALSE),) -> 0.375 | T85: =IF(D85="Open",VLOOKUP($K85,$S$24:$U$29,3,FALSE),) -> 1000000 | V85: =IF(D85="Open",VLOOKUP($K85,$S$24:$W$29,5,FALSE),) -> 5000000 | W85: =(T85+(V85-T85)/2)*S85 -> 1125000
A86: Affordable, Value for money scheme | B86: WLR -037 | C86: Thames River Crossing is the oldest iron rail bridge in operation and has listed building status. | D86: Open | E86: McPhee,Jon | F86: Single track operation maintained | G86: McPhee,Jon | H86: Open | I86: TBA | J86: Very Low | K86: Very Low | M86: Very Low | N86: 2 | O86: Routine | P86: =IF(AND(OR(D86=$D$2,D86=$D$5)),CONCATENATE(J86,VLOOKUP(MAX(VLOOKUP(K86,$J$2:$K$7,2,FALSE),VLOOKUP(M86,$J$2:$K$7,2,FALSE)),$K$2:$L$7,2,FALSE)),CONCATENATE($J$2,$J$2)) -> Very LowVery Low | Q86: =IF(AND(OR(D86=$D$2,D86=$D$5)),O86,$O$2) -> Routine | S86: =IF(D86="Open",VLOOKUP($J86,$S$24:$EV$29,2,FALSE),) -> 0.025 | T86: =IF(D86="Open",VLOOKUP($K86,$S$24:$U$29,3,FALSE),) -> 0 | V86: =IF(D86="Open",VLOOKUP($K86,$S$24:$W$29,5,FALSE),) -> 50000 | W86: =(T86+(V86-T86)/2)*S86 -> 625
A87: Minimal disruption to surrounding buildings | B87: WLR -038 | C87: Risk of 'harm' to Listed Buildings | D87: Open | E87: McPhee,Jon | F87: Care taken in design to avoid unecessary impacts | G87: McPhee,Jon | H87: Open | I87: TBA | J87: Low | K87: High | M87: High | N87: 6 | O87: Significant | P87: LowHigh | Q87: Significant | S87: 0.075 | T87: 1000000 | V87: 5000000 | W87: 225000
A88: Affordable, Value for money scheme | B88: WLR -039 | C88: Existing unknown sub-surface tunnels, culverts and features on the route | D88: Open | E88: McPhee,Jon | F88: GPR to be undertaken as a part of a detailed survey at GRIP 3 | G88: McPhee,Jon | H88: Open | I88: TBA | J88: Low | K88: High | M88: High | N88: 6 | O88: Significant | P88: LowHigh | Q88: Significant | S88: 0.075 | T88: 1000000 | V88: 5000000 | W88: 225000
A89: Affordable, Value for money scheme | B89: WLR -040 | C89: The criticality of further investigation and design work is not understood at senior level within WLR | D89: Open | E89: McPhee,Jon | F89: Full engagement with Network Rail by Directors of WLR | G89: Bathurst, George | H89: Open | I89: TBA | J89: Low | K89: Medium | M89: Low | N89: =IF(AND(J89<>$J$2,OR(K89<>$J$2,M89<>$J$2)),(VLOOKUP(J89,$J$2:$K$7,2,FALSE))+(IF(VLOOKUP(K89,$J$2:$K$7,2,FALSE)>VLOOKUP(M89,$J$2:$K$7,2,FALSE),VLOOKUP(K89,$J$2:$K$7,2,FALSE),VLOOKUP(M89,$J$2:$K$7,2,FALSE))),0) -> 5 | O89: =IF(N89=0,$O$2,IF(OR(N89=1,N89=2),$O$3,IF(AND(N89>2,N89<5),$O$4,IF(AND(N89>4,N89<7),$O$5,IF(N89=7,$O$6,$O$7))))) -> Significant | P89: =IF(AND(OR(D89=$D$2,D89=$D$5)),CONCATENATE(J89,VLOOKUP(MAX(VLOOKUP(K89,$J$2:$K$7,2,FALSE),VLOOKUP(M89,$J$2:$K$7,2,FALSE)),$K$2:$L$7,2,FALSE)),CONCATENATE($J$2,$J$2)) -> LowMedium | Q89: =IF(AND(OR(D89=$D$2,D89=$D$5)),O89,$O$2) -> Significant | S89: =IF(D89="Open",VLOOKUP($J89,$S$24:$EV$29,2,FALSE),) -> 0.075 | T89: =IF(D89="Open",VLOOKUP($K89,$S$24:$U$29,3,FALSE),) -> 250000 | V89: =IF(D89="Open",VLOOKUP($K89,$S$24:$W$29,5,FALSE),) -> 1000000 | W89: =(T89+(V89-T89)/2)*S89 -> 46875
A90: 4tph between Slough and Waterloo all stopping at Windsor | B90: WLR -041 | C90: The track bed width from Windsor to Slough is no longer suitable for twin tracking to satisfy the timetable. | D90: Open | E90: McPhee,Jon | F90: Full Asset inspections and surveys undertaken at the start of GRIP 3 and reviewed | G90: McPhee,Jon | H90: Open | I90: TBA | J90: Low | K90: High | M90: High | N90: 6 | O90: Significant | P90: LowHigh | Q90: Significant | S90: 0.075 | T90: 1000000 | V90: 5000000 | W90: 225000
A91: Affordable, Value for money scheme | B91: WLR -042 | C91: The risk to the business case of proceeding to GRIP 3 without detailed civils asset information from Network Rail and understanding of assets to be used in WLR | D91: Open | E91: McPhee,Jon | F91: Full Asset inspections and surveys undertaken at the start of GRIP 3 and reviewed | G91: McPhee,Jon | H91: Open | I91: TBA | J91: Medium | K91: High | M91: High | N91: 7 | O91: Major | P91: MediumHigh | Q91: Major | S91: 0.175 | T91: 1000000 | V91: 5000000 | W91: 525000
A92: Affordable, Value for money scheme | B92: WLR -043 | C92: The risk to the business case of proceeding to GRIP 3 without detailed signalling asset information from Network Rail and understanding of assets to be used in WLR | D92: Open | E92: McPhee,Jon | F92: Full Asset inspections and surveys undertaken at the start of GRIP 3 and reviewed | G92: McPhee,Jon | H92: Open | I92: TBA | J92: High | K92: High | M92: High | N92: 8 | O92: Critical | P92: HighHigh | Q92: Critical | S92: 0.375 | T92: 1000000 | V92: 5000000 | W92: 1125000
A93: Affordable, Value for money scheme | B93: WLR -044 | C93: The risk to the business case of proceeding to GRIP 3 without detailed traction power asset information from Network Rail and understanding of assets to be used in WLR | D93: Open | E93: McPhee,Jon | F93: Full Asset inspections and surveys undertaken at the start of GRIP 3 and reviewed | G93: McPhee,Jon | H93: Open | I93: TBA | J93: High | K93: High | M93: High | N93: 8 | O93: Critical | P93: HighHigh | Q93: Critical | S93: 0.375 | T93: 1000000 | V93: 5000000 | W93: 1125000
A94: Safe transport system | B94: WLR -045 | C94: The existing level crossing represent an unacceptable risk to WLR and needs to be closed | D94: Open | E94: McPhee,Jon | F94: New Franchise requires 4tph through the same level crossings | G94: McPhee,Jon | H94: Open | I94: TBA | J94: Low | K94: High | M94: High | N94: 6 | O94: Significant | P94: LowHigh | Q94: Significant | S94: 0.075 | T94: 1000000 | V94: 5000000 | W94: 225000
A95: Affordable, Value for money scheme | B95: WLR -046 | C95: Risk that forecast increase in patronage will be insufficient to deliver adequate revenue to satisfy the business case | D95: Open | E95: McPhee,Jon | F95: Detailed discussions with DfT required to agree funding | G95: Bathurst, George | H95: Open | I95: TBA | J95: Low | K95: High | M95: High | N95: 6 | O95: Significant | P95: LowHigh | Q95: Significant | S95: 0.075 | T95: 1000000 | V95: 5000000 | W95: 225000
A96: Affordable, Value for money scheme | B96: WLR -047 | C96: Risk that new franchise improvements to 4tph to Windsor removes large patronage growthupon which WLR relies for funding | D96: Open | E96: McPhee,Jon | F96: Detailed discussions with DfT required to agree funding | G96: Bathurst, George | H96: Open | I96: TBA | J96: Low | K96: High | M96: High | N96: 6 | O96: Significant | P96: LowHigh | Q96: Significant | S96: 0.075 | T96: 1000000 | V96: 5000000 | W96: 225000
A97: Affordable, Value for money scheme | B97: WLR -048 | C97: Risk that combining complex projects in to a single programme causes undue risk within a small town | D97: Open | E97: McPhee,Jon | F97: Careful phasing and appropriate solutions prioritised in GRIP 3 options | G97: McPhee,Jon | H97: Open | I97: TBA | J97: Medium | K97: Medium | M97: High | N97: 7 | O97: Major | P97: MediumHigh | Q97: Major | S97: 0.175 | T97: 250000 | V97: 1000000 | W97: 109375
A98: Affordable, Value for money scheme | B98: WLR -049 | C98: Platform lengthening uncovers unknown cables and subsurface features | D98: Open | E98: McPhee,Jon | F98: Full Asset inspections and surveys undertaken at the start of GRIP 3 and reviewed | G98: McPhee,Jon | H98: Open | I98: TBA | J98: Medium | K98: High | M98: Medium | N98: 7 | O98: Major | P98: MediumHigh | Q98: Major | S98: 0.175 | T98: 1000000 | V98: 5000000 | W98: 525000
A99: Affordable, Value for money scheme | B99: WLR -050 | C99: Resources not available to meet the design programme in specialist areas | D99: Open | E99: McPhee,Jon | F99: Appropriate allocation of resource through competent design chain | G99: Bathurst, George | H99: Open | I99: TBA | J99: Very Low | K99: Low | M99: Low | N99: 3 | O99: Minor | P99: Very LowLow | Q99: Minor | S99: 0.025 | T99: 50000 | V99: 250000 | W99: 3750
A100: Efficient low maintenance railcar system | B100: WLR -051 | C100: Resources not available to meet the construction programme in specialist areas | D100: Open | E100: McPhee,Jon | F100: Appropriate allocation of resource through competent design chain | G100: McPhee,Jon | H100: Open | I100: TBA | J100: Very Low | K100: Low | M100: Low | N100: =IF(AND(J100<>$J$2,OR(K100<>$J$2,M100<>$J$2)),(VLOOKUP(J100,$J$2:$K$7,2,FALSE))+(IF(VLOOKUP(K100,$J$2:$K$7,2,FALSE)>VLOOKUP(M100,$J$2:$K$7,2,FALSE),VLOOKUP(K100,$J$2:$K$7,2,FALSE),VLOOKUP(M100,$J$2:$K$7,2,FALSE))),0) -> 3 | O100: =IF(N100=0,$O$2,IF(OR(N100=1,N100=2),$O$3,IF(AND(N100>2,N100<5),$O$4,IF(AND(N100>4,N100<7),$O$5,IF(N100=7,$O$6,$O$7))))) -> Minor | P100: Very LowLow | Q100: Minor | S100: 0.025 | T100: 50000 | V100: 250000 | W100: 3750
A101: Efficient low maintenance railcar system | B101: WLR -052 | C101: New Rolling Stock Requirements required to deliver the objectives present prohibitive costs to WLR | D101: Open | E101: McPhee,Jon | F101: Selection of solutions which use existing rollin gstock from new franchise or modest interventions | G101: Bathurst, George | H101: Open | I101: TBA | J101: High | K101: Very High | M101: Very High | N101: =IF(AND(J101<>$J$2,OR(K101<>$J$2,M101<>$J$2)),(VLOOKUP(J101,$J$2:$K$7,2,FALSE))+(IF(VLOOKUP(K101,$J$2:$K$7,2,FALSE)>VLOOKUP(M101,$J$2:$K$7,2,FALSE),VLOOKUP(K101,$J$2:$K$7,2,FALSE),VLOOKUP(M101,$J$2:$K$7,2,FALSE))),0) -> 9 | O101: =IF(N101=0,$O$2,IF(OR(N101=1,N101=2),$O$3,IF(AND(N101>2,N101<5),$O$4,IF(AND(N101>4,N101<7),$O$5,IF(N101=7,$O$6,$O$7))))) -> Critical | P101: HighVery High | Q101: Critical | S101: 0.375 | T101: 5000000 | V101: 7500000 | W101: 2343750
A102: Safe transport system | B102: WLR -053 | C102: Electrification using third rail solution is not acceptable to ORR requiring alternative solutions for traction power | D102: Open | E102: McPhee,Jon | F102: Detailed discussions and risk assessment with ORR required to agree extension of third rail system | G102: McPhee,Jon | H102: Open | I102: TBA | J102: Very High | K102: High | M102: Medium | N102: =IF(AND(J102<>$J$2,OR(K102<>$J$2,M102<>$J$2)),(VLOOKUP(J102,$J$2:$K$7,2,FALSE))+(IF(VLOOKUP(K102,$J$2:$K$7,2,FALSE)>VLOOKUP(M102,$J$2:$K$7,2,FALSE),VLOOKUP(K102,$J$2:$K$7,2,FALSE),VLOOKUP(M102,$J$2:$K$7,2,FALSE))),0) -> 9 | O102: =IF(N102=0,$O$2,IF(OR(N102=1,N102=2),$O$3,IF(AND(N102>2,N102<5),$O$4,IF(AND(N102>4,N102<7),$O$5,IF(N102=7,$O$6,$O$7))))) -> Critical | P102: Very HighHigh | Q102: Critical | S102: 0.625 | T102: 1000000 | V102: 5000000 | W102: 1875000
A103: Keeping Windsor operational before, during and after construction | B103: WLR -054 | C103: Local groundwater flooding caused by impermeability of subsurface solutions affecting hydrology in area. | D103: Open | E103: McPhee,Jon | F103: GRIP 3 study to be undertaken to confirm subsurface water flows and mitigations required for Windsor | G103: McPhee,Jon | H103: Open | I103: TBA | J103: Medium | K103: High | M103: Medium | N103: =IF(AND(J103<>$J$2,OR(K103<>$J$2,M103<>$J$2)),(VLOOKUP(J103,$J$2:$K$7,2,FALSE))+(IF(VLOOKUP(K103,$J$2:$K$7,2,FALSE)>VLOOKUP(M103,$J$2:$K$7,2,FALSE),VLOOKUP(K103,$J$2:$K$7,2,FALSE),VLOOKUP(M103,$J$2:$K$7,2,FALSE))),0) -> 7 | O103: =IF(N103=0,$O$2,IF(OR(N103=1,N103=2),$O$3,IF(AND(N103>2,N103<5),$O$4,IF(AND(N103>4,N103<7),$O$5,IF(N103=7,$O$6,$O$7))))) -> Major | P103: =IF(AND(OR(D103=$D$2,D103=$D$5)),CONCATENATE(J103,VLOOKUP(MAX(VLOOKUP(K103,$J$2:$K$7,2,FALSE),VLOOKUP(M103,$J$2:$K$7,2,FALSE)),$K$2:$L$7,2,FALSE)),CONCATENATE($J$2,$J$2)) -> MediumHigh | Q103: =IF(AND(OR(D103=$D$2,D103=$D$5)),O103,$O$2) -> Major | S103: =IF(D103="Open",VLOOKUP($J103,$S$24:$EV$29,2,FALSE),) -> 0.175 | T103: =IF(D103="Open",VLOOKUP($K103,$S$24:$U$29,3,FALSE),) -> 1000000 | V103: =IF(D103="Open",VLOOKUP($K103,$S$24:$W$29,5,FALSE),) -> 5000000 | W103: =(T103+(V103-T103)/2)*S103 -> 525000
F104: Recommended contingency for GRIP Stage of register = | I104: =$AL$14 -> 0.25 | J104: Qualitative Mean contingency = | M104: =IF(C15=0,,W47/C15) -> 0.05961 | N104: =M104*C15 -> 22353750 | O104: =M104*C15 -> 22353750 | P104: ="Q"&ROW()-2 -> Q102 | Q104: =IF(AND(OR(D104=$D$2,D104=$D$5)),M104,$O$2) -> Nil | W104: ="W" &ROW()-1 -> W103 | Z104: =ROW() -> 104
A105: WARNING: Do not add or delete any rows beneath the "Add New Row" line

Sheet Generic risk prompt sheet
A1: Generic risk provision checklist
A3: The generic risk checklist, shown below, is derived from experience of inherent project implementation risks. Due to the nature of the items noted below these may more accurately be termed 'issues' due to the almost certainty that they will occur in some form during the lifecycle of the project. It is for this reason that a likelihood of high is applied and the impact will be determined by the number of risk identified. The Project Manager should note with a "Y" those generic risks that apply and/or note where a specific risk is worthy of recording in its own right for management purposes. These specifics shall be transferred to the risk register.
A8: Cost allocation is derived from the number of generic items selected as being applicable to the type of works using the table also shown below with the addition of any specifics being assessed in the register.
A10: Project: | B10: ='Risk Register'!C13 -> Windsor Link Railway | C10: OP Code: | D10: WRL
A11: GRIP: | B11: ='Risk Register'!C14 -> 2 | C11: Mark "Y" as appropriate
B12: Risk/Issue | C12: Generic | D12: N/A | E12: Specific Risk | IV12: Y
A13: 1 | B13: Access: availability (track and general site access) | C13: Y | E13: Y | IV13: N
A14: 2 | B14: Accommodation issues - relocations or complex temporary | C14: Y | E14: Y
A15: 3 | B15: Planning Approvals - complexity of securing agreement | C15: Y | E15: Y
A16: 4 | B16: Availability of Records/ Drawings | C16: Y | E16: Y
A17: 5 | B17: Potential for signficant change of Scope/ design development unknowns | C17: Y | E17: Y
A18: 6 | B18: Disruption of train services | C18: Y | E18: Y
A19: 7 | B19: Environmental impact: Environment Agency interests | C19: Y | E19: Y
A20: 8 | B20: Reliance on Engineering trains | C20: N | E20: N
A21: 9 | B21: Ground conditions - unknowns/ complexity | C21: Y | E21: Y
A22: 10 | B22: Ground obstructions unknowns/ complexity | C22: Y | E22: Y
A23: 11 | B23: Interfaces with other projects (in our outside NR) | C23: Y | E23: Y
A24: 12 | B24: Local Issues / Events - potential to affect/be affected | C24: Y | E24: Y
A25: 13 | B25: Noise disturbance - S106 constraints etc | C25: Y | E25: Y
A26: 14 | B26: Overrun of Works - schedule confidence level | C26: Y | E26: Y
A27: 15 | B27: Necessity for possessions | C27: Y | E27: Y
A28: 16 | B28: Preservation Orders on vegetation/TPOs | C28: Y | E28: Y
A29: 17 | B29: NR infrastructure - damage | C29: Y | E29: Y
A30: 18 | B30: Plant Failure | C30: Y | E30: Y
A31: 19 | B31: Theft/vandalism/trespass | C31: Y | E31: Y
A32: 20 | B32: Recoveries/disposals | C32: Y | E32: Y
A33: 21 | B33: Resources - design: availability/ capability | C33: Y | E33: Y
A34: 22 | B34: Resources - development: availability/ capability | C34: Y | E34: Y
A35: 23 | B35: Resources - implementation: availability/ capability including supply chain | C35: Y | E35: Y
A36: 24 | B36: Road & footpath closures | C36: Y | E36: Y
A37: 25 | B37: S&T Works | C37: Y | E37: Y
A38: 26 | B38: Necessity for complex scaffolding | C38: N | E38: N
A39: 27 | B39: Security | C39: Y | E39: Y
A40: 28 | B40: NR/ Industry Standards – issues with compliance/ innovative solutions | C40: Y | E40: N
A41: 29 | B41: Statutory services ( utilities, local authorities) | C41: Y | E41: Y
A42: 30 | B42: Traffic Management Costs | C42: Y | E42: Y
A43: 31 | B43: Weather | C43: Y | E43: Y
B45: Total number of risks | C45: =COUNTIF(C13:C43,"Y") -> 29 | E45: =COUNTIF(E13:E43,"Y") -> 28
B46: Allowance for Generic Risks at mean (% of point estimate) range depending upon the number identified, the GRIP stage and Asset type | C46: =C45/31*'Risk Register'!AL14 -> 0.2338709677
C48: Very Low | D48: Low | E48: Medium | F48: High | G48: Very High
B50: Number of generic risks identified | C50: 1 to 10 | D50: 6 to 16 | E50: 10 to 20 | F50: 14 to 22 | G50: 22 to 31

Sheet Template instructions
A1: Instructions for using this template
A2: Complete Project information - Complete project information at the top of the risk register, the required fields are OP code, Project Title, Current GRIP Stage (from drop down menu), Asset type (from drop down menu), Estimate "to go" value in digits (e.g. £800,000 and not £0.8m), Project Manager, Status Date of register and Project Information. Note: Project size is derived from the Estimate "to go" value.
A4: Consider Generic and Site Specific Risks Go to the Generic Risk Prompt List and select which generics and which project specifics are relevant to your works. The "Generic Risk as a % of Estimate "to go" value" will be calculated and will start to build the risk register - see below.
A5: Objectives - Fill out the core objectives of your project, you may fill out as many as you need (five is recommended as a maximum). The purpose of listing the objectives is to provide a context for identifying project threats and opportunities.
A6: Adding risks - The risk items should come from the specific risks suggested by the generic risk prompt sheet. Considering the items selected, the project team should add the key actual risks that are a threat or opportunity to their project. Each risk description should be documented as Cause-Risk-Effect, for example; Cause - Late running passenger trains delay the start of the possession Risk - Due to the length of the delay the works will not be able to be completed within the possession limits Effect - Additional costs for abortive shifts and programme delay It should be noted that risk ID codes will not be generated automatically, it is recommended that OP codes are used to code risks, for example 101659-001, 101659-002.
A7: Completing the risk register - Each field must be completed. Fields have been categorised into "Risk", "Treatment" and "Impact". To assist in the assessment of project risks the impact fields have qualitative drop downs fields for probability, cost and time, that once completed will automatically categorise the severity of each risk using the scale provided in the risk register. The severity scale will enable project team to highlight high profile risks. Risk Owner and Action Owner should be in the following format i.e. Surname, First Name. The register has five risk lines visible. If more risks are required, click on the "Add New Row" button at the bottom of the template and excel will add a new risk line. Further clicks will add more lines.
A8: Using the qualitative Mean calculation The sheet has the functionality to generate a qualitative mean contingency as a % of the AFC value. This is generated by using the probability and cost impact ratings from the drop down menu in each cell. The calculation values are derived from the qualitative risk scoring scale at the top right hand corner of the sheet to provide a qualitative mean contingency risk exposure. Recommended contingency (at mean) % The spreadsheet provides a value based upon Asset type and current GRIP Stage and compares this to typical benchmarks. If you are notably outside these benchmarks you should double check that the input is valid and this will provide adequate substantation for the deviation.
A9: Entry into ARM The Register sheet will generate the values that need to be entered into ARM either under one line entry or if the specifics are included, the totals needs to reflect these numbers. For further advice, please contact a member of the R&V Team.

Sheet Version Control
A1: Version Control
A3: Version | B3: Description | C3: Date | D3: By Whom
A4: 1 | B4: Workshop with Network Rail & WLR | C4: 2016-11-29 | D4: Jon McPhee
A5: 1.1 | B5: Internal Designer Development | C5: 2016-12-02 | D5: Jon McPhee
A6: 1.2 | B6: Internal Designer Development | C6: 2017-01-25 | D6: Jon McPhee
A7: 1.3 | B7: First formal Draft Issue to NR for review | C7: 2017-03-29 | D7: Jon McPhee
A8: 1.4
A9: 1.5
A10: 1.6
A11: 1.7
A12: 1.8
